fUST/lending_fUST_20240329
["ID","MTS","AMOUNT","RATE_DAILY","PERIOD"]
[320911476,1711704632410,-605.291,0.00048527,120]
[320911479,1711704632419,-605.291,0.00048527,120]
[320911482,1711704632428,-605.292,0.00048527,120]
[320911485,1711704632438,-412.65045072,0.00048699,2]
[320911488,1711704632446,-171.295321,0.00048959,2]
[320911491,1711704632456,-24900.0,0.00049148,2]
[320911494,1711704632466,-1706.0961577,0.00049693,2]
[320911497,1711704632475,-154.57149796,0.000498,2]
[320911499,1711704632484,-2387.9303775,0.00050119,2]
[320911501,1711704632493,-249.502535,0.00050365,2]
[320911502,1711704632503,-356.849685,0.00050365,120]
[320911504,1711704632512,-6533.09843605,0.0005091,120]
[320911506,1711704632521,-408.0,0.00051,120]
[320911508,1711704632530,-408.0,0.00051027,120]
[320911510,1711704632540,-459.16629501,0.00051178,2]
[320911511,1711704632550,-153.0,0.00051278,2]
[320911512,1711704632559,-153.0,0.00051278,2]
[320911513,1711704632568,-153.0,0.00051278,2]
[320911514,1711704632578,-459.166295,0.00051372,2]
[320911515,1711704632587,-163.46120556,0.00051533,3]
[320911516,1711704632597,-459.166295,0.00051566,2]
[320911517,1711704632606,-459.166295,0.0005176,2]
[320911518,1711704632616,-2000.0,0.000518,120]
[320911519,1711704632625,-2000.0,0.000518,120]
[320911520,1711704632634,-2000.0,0.000518,120]
[320911521,1711704632643,-2000.0,0.000518,120]
[320911522,1711704632659,-2000.0,0.000518,120]
[320911523,1711704632668,-792.57364,0.000518,120]
[320911524,1711704632678,-202.0622477,0.00051808,2]
[320911525,1711704632687,-202.0622477,0.00051808,2]
[320911526,1711704632696,-2731.912542,0.000519,82]
[320911527,1711704632705,-459.166295,0.00051954,2]
[320911528,1711704632715,-181.17160852,0.0005205,4]
[320911529,1711704632724,-320.78941376,0.0005205,4]
[320911530,1711704632735,-512.13858899,0.0005205,4]
[320911531,1711704632836,-402.87327255,0.0005205,2]
[320911532,1711704632846,-471.46649418,0.0005205,4]
[320911533,1711704632856,-471.2456471,0.0005205,4]
[320911534,1711704632866,-313.02840032,0.0005205,4]
[320911535,1711704632874,-385.93768084,0.0005205,4]
[320911536,1711704632884,-608.53071941,0.0005205,4]
[320911537,1711704632894,-310.97590673,0.00052051,4]
[320911538,1711704632903,-500.0,0.00052052,120]
[320911539,1711704632913,-500.0,0.00052052,120]
[320911540,1711704632922,-511.84795858,0.00052052,4]
[320911541,1711704632936,-155.73928034,0.00052052,4]
[320911542,1711704632945,-302.02465838,0.00052052,4]
[320911543,1711704632954,-1920.29570701,0.00052052,4]
[320911544,1711704632964,-309.78313322,0.00052052,4]
[320911545,1711704632975,-221.87441247,0.00052052,4]
[320911546,1711704632984,-404.77707708,0.00052052,4]
[320911547,1711704632993,-314.83484695,0.00052052,120]
[320911548,1711704633003,-155.46971887,0.00052052,4]
[320911549,1711704633014,-2232.15327083,0.00052052,120]
[320911550,1711704633024,-3502.49400301,0.00052052,4]
[320911551,1711704633034,-282.85116552,0.00052052,4]
[320911552,1711704633043,-170.4085909,0.00052052,4]
[320911553,1711704633052,-339.22220076,0.00052052,2]
[320911554,1711704633062,-470.70840451,0.00052052,4]
[320911555,1711704633071,-155.36676347,0.00052052,4]
[320911556,1711704633080,-1562.50606045,0.00052052,4]
[320911557,1711704633090,-251.8271845,0.00052052,4]
[320911558,1711704633099,-779.72077743,0.00052052,4]
[320911559,1711704633108,-366.43739482,0.00052052,4]
[320911560,1711704633117,-253.60143012,0.00052052,4]
[320911561,1711704633127,-198.82827503,0.00052052,4]
[320911562,1711704633136,-312.51706201,0.00052052,4]
[320911563,1711704633147,-155.19513618,0.00052052,2]
[320911564,1711704633157,-156.25750455,0.00052052,4]
[320911565,1711704633166,-155.62559264,0.00052052,4]
[320911566,1711704633175,-187.50230837,0.00052052,2]
[320911567,1711704633185,-406.860959,0.00052052,4]
[320911568,1711704633194,-431.93774344,0.00052052,4]
[320911569,1711704633203,-155.34751548,0.00052052,4]
[320911570,1711704633213,-603.12853459,0.00052052,4]
[320911571,1711704633222,-177.7938113,0.00052052,4]
[320911572,1711704633232,-500.82920371,0.00052052,4]
[320911573,1711704633241,-830.67030105,0.00052052,4]
[320911574,1711704633250,-192.11766416,0.00052052,4]
[320911575,1711704633259,-209.56779885,0.00052052,2]
[320911576,1711704633269,-201.20177969,0.00052052,4]
[320911577,1711704633278,-685.88747989,0.00052052,4]
[320911578,1711704633288,-219.06584977,0.00052052,4]
[320911579,1711704633298,-155.14860564,0.00052052,4]
[320911580,1711704633308,-208.84415989,0.00052052,4]
[320911581,1711704633318,-306.30701489,0.00052052,4]
[320911582,1711704633328,-155.65767736,0.00052052,4]
[320911583,1711704633337,-1683.28608931,0.00052052,120]
[320911584,1711704633347,-1914.67146911,0.00052052,4]
[320911585,1711704633356,-268.75897952,0.00052052,4]
[320911586,1711704633369,-236.99508881,0.00052052,4]
[320911587,1711704633379,-648.62960531,0.00052052,4]
[320911588,1711704633389,-4335.70960704,0.00052052,4]
[320911589,1711704633398,-790.53540876,0.00052053,4]
[320911590,1711704633406,-1000.0,0.00052053,2]
[320911591,1711704633416,-1000.0,0.00052053,5]
[320911592,1711704633426,-500.0,0.00052053,120]
[320911593,1711704633436,-500.0,0.00052053,120]
[320911594,1711704633445,-645.67404,0.00052053,120]
[320911595,1711704633456,-157.09607965,0.00052053,120]
[320911596,1711704633466,-11566.48191497,0.00052054,61]
[320911597,1711704633475,-500.0,0.00052054,120]
[320911598,1711704633485,-500.0,0.00052054,120]
[320911599,1711704633494,-500.0,0.00052054,120]
[320911600,1711704633504,-500.0,0.00052054,120]
[320911601,1711704633513,-596.76450324,0.00052054,120]
[320911602,1711704633523,-501.37076547,0.00052054,120]
[320911603,1711704633532,-500.0,0.00052054,120]
[320911604,1711704633542,-500.0,0.00052054,120]
[320911605,1711704633552,-561.34177718,0.00052054,120]
[320911606,1711704633561,-500.0,0.00052054,120]
[320911607,1711704633571,-500.0,0.00052054,120]
[320911608,1711704633580,-500.0,0.00052054,120]
[320911609,1711704633590,-500.816058,0.00052054,120]
[320911610,1711704633601,-500.0,0.00052054,120]
[320911611,1711704633622,-500.0,0.00052054,120]
[320911612,1711704633643,-500.0,0.00052054,120]
[320911613,1711704633665,-500.0,0.00052054,120]
[320911614,1711704633678,-500.0,0.00052054,120]
[320911615,1711704633688,-500.0,0.00052054,120]
[320911616,1711704633697,-500.0,0.00052054,120]
[320911617,1711704633707,-500.0,0.00052054,120]
[320911618,1711704633717,-500.0,0.00052054,120]
[320911619,1711704633726,-500.0,0.00052054,120]
[320911620,1711704633735,-945.73,0.00052054,120]
[320911621,1711704633745,-500.0,0.00052054,120]
[320911622,1711704633754,-500.0,0.00052054,120]
[320911623,1711704633763,-500.0,0.00052054,120]
[320911624,1711704633772,-500.0,0.00052054,120]
[320911625,1711704633782,-500.0,0.00052054,120]
[320911626,1711704633792,-500.0,0.00052054,120]
[320911627,1711704633801,-500.0,0.00052054,120]
[320911628,1711704633810,-226.44901727,0.00052054,120]
[320911629,1711704633819,-514.7830336,0.00052054,120]
[320911630,1711704633829,-500.0,0.00052054,120]
[320911631,1711704633838,-500.0,0.00052054,120]
[320911632,1711704633847,-500.0,0.00052054,120]
[320911633,1711704633856,-500.0,0.00052054,120]
[320911634,1711704633865,-500.0,0.00052054,120]
[320911635,1711704633875,-151.0,0.00052054,7]
[320911636,1711704633885,-501.93771563,0.00052054,120]
[320911637,1711704633894,-500.0,0.00052054,120]
[320911638,1711704633903,-500.0,0.00052054,120]
[320911639,1711704633912,-500.0,0.00052054,120]
[320911640,1711704633922,-151.0,0.00052054,7]
[320911641,1711704633932,-500.0,0.00052054,120]
[320911642,1711704633945,-151.0,0.00052054,7]
[320911643,1711704633954,-151.0,0.00052054,7]
[320911644,1711704633963,-151.0,0.00052054,7]
[320911645,1711704633973,-355.8608576,0.00052054,120]
[320911646,1711704633983,-500.0,0.00052054,120]
[320911647,1711704633992,-500.0,0.00052054,120]
[320911648,1711704634001,-500.0,0.00052054,120]
[320911649,1711704634010,-500.0,0.00052054,120]
[320911650,1711704634021,-500.0,0.00052054,120]
[320911651,1711704634030,-500.0,0.00052054,120]
[320911652,1711704634039,-500.0,0.00052054,120]
[320911653,1711704634049,-500.0,0.00052054,120]
[320911654,1711704634058,-504.31781068,0.00052054,120]
[320911655,1711704634067,-151.0,0.00052054,7]
[320911656,1711704634076,-151.0,0.00052054,7]
[320911657,1711704634085,-500.0,0.00052054,120]
[320911658,1711704634095,-151.0,0.00052054,7]
[320911659,1711704634104,-500.0,0.00052054,120]
[320911660,1711704634114,-500.0,0.00052054,120]
[320911661,1711704634124,-500.0,0.00052054,120]
[320911662,1711704634133,-502.41491343,0.00052054,120]
[320911663,1711704634142,-500.0,0.00052054,120]
[320911664,1711704634152,-500.0,0.00052054,120]
[320911665,1711704634161,-342.52906042,0.00052054,120]
[320911666,1711704634170,-500.0,0.00052054,120]
[320911667,1711704634179,-500.0,0.00052054,120]
[320911668,1711704634188,-500.0,0.00052054,120]
[320911669,1711704634197,-500.0,0.00052054,120]
[320911670,1711704634207,-500.0,0.00052054,120]
[320911671,1711704634216,-500.0,0.00052054,120]
[320911672,1711704634225,-1229.64,0.00052054,120]
[320911673,1711704634235,-500.0,0.00052054,120]
[320911674,1711704634244,-500.0,0.00052054,120]
[320911675,1711704634253,-500.0,0.00052054,120]
[320911676,1711704634263,-151.0,0.00052054,7]
[320911677,1711704634273,-151.0,0.00052054,7]
[320911678,1711704634281,-151.0,0.00052054,7]
[320911679,1711704634290,-151.0,0.00052054,7]
[320911680,1711704634299,-500.0,0.00052054,120]
[320911681,1711704634308,-500.0,0.00052054,120]
[320911682,1711704634318,-411.17888943,0.00052054,120]
[320911683,1711704634327,-428.97067938,0.00052054,120]
[320911684,1711704634336,-500.0,0.00052054,120]
[320911685,1711704634345,-5861.02,0.00052054,120]
[320911686,1711704634354,-500.0,0.00052054,120]
[320911687,1711704634363,-500.0,0.00052054,120]
[320911688,1711704634372,-500.0,0.00052054,120]
[320911689,1711704634381,-500.0,0.00052054,120]
[320911690,1711704634390,-500.0,0.00052054,120]
[320911691,1711704634399,-500.0,0.00052054,120]
[320911692,1711704634408,-2744.82045725,0.00052054,120]
[320911693,1711704634417,-500.0,0.00052054,120]
[320911694,1711704634426,-500.0,0.00052054,120]
[320911695,1711704634435,-501.72828764,0.00052054,120]
[320911696,1711704634444,-500.0,0.00052054,120]
[320911697,1711704634454,-500.0,0.00052054,120]
[320911698,1711704634464,-568.53333838,0.00052054,120]
[320911699,1711704634473,-500.0,0.00052054,120]
[320911700,1711704634482,-500.0,0.00052054,120]
[320911701,1711704634492,-1619.07269156,0.00052054,120]
[320911702,1711704634538,-42.76730844,0.00052054,120]
[320911703,1711704634548,-536.92,0.00052054,120]
[320911704,1711704634557,-500.0,0.00052054,120]
[320911705,1711704634567,-502.89558518,0.00052054,120]
[320911706,1711704634576,-617.19,0.00052054,120]
[320911707,1711704634585,-500.0,0.00052054,120]
[320911708,1711704634595,-1288.36,0.00052054,120]
[320911709,1711704634604,-3196.86,0.00052054,120]
[320911710,1711704634613,-1277.96,0.00052054,120]
[320911711,1711704634623,-500.0,0.00052054,120]
[320911712,1711704634632,-500.0,0.00052054,120]
[320911713,1711704634642,-500.0,0.00052054,120]
[320911714,1711704634651,-7716.46,0.00052054,120]
[320911715,1711704634660,-500.0,0.00052054,120]
[320911716,1711704634669,-1423.62,0.00052054,2]
[320911717,1711704634679,-500.0,0.00052054,120]
[320911718,1711704634688,-54.50110638,0.00052054,120]
[320911719,1711704634701,-1712.91447544,0.00052054,120]
[320911720,1711704634715,-42.88441818,0.00052054,120]
[320911721,1711704634808,-500.0,0.00052054,120]
[320911722,1711704634818,-395.34200713,0.00052054,120]
[320911737,1711704638246,-180.0,0.00052051,120]
[320911738,1711704638255,-500.0,0.00052051,120]
[320911739,1711704638264,-500.0,0.00052051,120]
[320911740,1711704638273,-500.0,0.00052051,120]
[320911741,1711704638282,-500.0,0.00052051,120]
[320911742,1711704638291,-500.0,0.00052051,120]
[320911743,1711704638300,-500.0,0.00052051,120]
[320911744,1711704638309,-500.0,0.00052051,120]
[320911745,1711704638318,-500.0,0.00052051,120]
[320911746,1711704638327,-500.0,0.00052051,120]
[320911747,1711704638336,-300.0,0.00052051,120]
[320911748,1711704638345,-500.0,0.00052051,120]
[320911749,1711704638353,-500.0,0.00052051,120]
[320911750,1711704638362,-500.0,0.00052051,120]
[320911751,1711704638371,-438.17833205,0.00052051,120]
[320911752,1711704638380,-500.0,0.00052051,120]
[320911753,1711704638389,-500.0,0.00052051,120]
[320911754,1711704638397,-500.0,0.00052051,120]
[320911755,1711704638406,-104.65799287,0.00052054,120]
[320911756,1711704638415,-500.0,0.00052054,120]
[320911757,1711704638424,-237.94446687,0.00052054,120]
[320911758,1711704638433,-649.62,0.00052054,120]
[320911759,1711704638442,-500.0,0.00052054,120]
[320911760,1711704638451,-2224.71,0.00052054,120]
[320911761,1711704638459,-500.0,0.00052054,120]
[320911762,1711704638469,-500.0,0.00052054,120]
[320911763,1711704638477,-500.0,0.00052054,120]
[320911764,1711704638486,-745.63,0.00052054,120]
[320911765,1711704638495,-516.05,0.00052054,120]
[320911766,1711704638504,-500.0,0.00052054,120]
[320911768,1711704638513,-500.0,0.00052054,120]
[320911769,1711704638524,-1240.16,0.00052054,120]
[320911771,1711704638534,-749.5,0.00052054,120]
[320911772,1711704638543,-17180.59,0.00052054,90]
[320911773,1711704638552,-500.0,0.00052054,120]
[320911774,1711704638561,-425.26148549,0.00052054,120]
[320911775,1711704638571,-4357.59,0.00052054,21]
[320911776,1711704638580,-1030.82,0.00052054,120]
[320911777,1711704638589,-500.0,0.00052054,120]
[320911778,1711704638598,-500.0,0.00052054,120]
[320911779,1711704638608,-500.0,0.00052054,120]
[320911780,1711704638617,-500.0,0.00052054,120]
[320911781,1711704638627,-1314.11,0.00052054,120]
[320911782,1711704638637,-500.0,0.00052054,120]
[320911783,1711704638648,-500.0,0.00052054,120]
[320911784,1711704638658,-500.0,0.00052054,120]
[320911785,1711704638667,-500.0,0.00052054,120]
[320911786,1711704638676,-500.0,0.00052054,120]
[320911787,1711704638686,-500.0,0.00052054,120]
[320911788,1711704638696,-560.2099108,0.00052054,120]
[320911789,1711704638705,-500.0,0.00052054,120]
[320911790,1711704638715,-725.16,0.00052054,120]
[320911791,1711704638725,-500.37985486,0.00052054,120]
[320911792,1711704638734,-500.0,0.00052054,120]
[320911793,1711704638743,-500.0,0.00052054,120]
[320911794,1711704638753,-500.0,0.00052054,120]
[320911795,1711704638763,-500.44469557,0.00052054,120]
[320911796,1711704638772,-493.623136,0.00052054,120]
[320911797,1711704638781,-500.0,0.00052054,120]
[320911798,1711704638791,-229.88543689,0.00052054,120]
[320911799,1711704638800,-1937.48,0.00052054,120]
[320911800,1711704638809,-619.53209045,0.00052054,120]
[320911801,1711704638819,-382.43802964,0.00052054,120]
[320911802,1711704638834,-698.95,0.00052054,120]
[320911803,1711704638850,-168.19197036,0.00052054,120]
[320911804,1711704638860,-1000.0,0.00052054,120]
[320911805,1711704638869,-791.08,0.00052054,120]
[320911806,1711704638878,-500.0,0.00052054,60]
[320911807,1711704638887,-500.0,0.00052054,120]
[320911808,1711704638897,-36.69574202,0.00052054,120]
[320911809,1711704638909,-463.30425798,0.00052054,120]
[320911810,1711704638920,-500.0,0.00052054,120]
[320911811,1711704638931,-500.0,0.00052054,120]
[320911812,1711704638943,-500.0,0.00052054,120]
[320911813,1711704638954,-644.53377424,0.00052054,120]
[320911814,1711704638964,-477.32765865,0.00052054,120]
[320911820,1711704640343,-22.67234135,0.00052054,120]
[320911821,1711704640352,-500.0,0.00052054,120]
[320911822,1711704640362,-16.4001237,0.00052054,120]
[320911823,1711704640373,-622.35585861,0.00052054,120]
[320911824,1711704640382,-500.0,0.00052054,120]
[320911825,1711704640391,-377.61530206,0.00052054,120]
[320911826,1711704640402,-122.38469794,0.00052054,120]
[320911827,1711704640412,-500.0,0.00052054,120]
[320911828,1711704640420,-502.62452033,0.00052054,120]
[320911829,1711704640429,-500.0,0.00052054,120]
[320911830,1711704640438,-1055.58,0.00052171,8]
[320911831,1711704640447,-500.0,0.00052171,120]
[320911832,1711704640457,-181.064875,0.00052172,30]
[320911833,1711704640467,-579.407603,0.00052172,30]
[320911834,1711704640477,-1662.37767,0.00052172,30]
[320911835,1711704640486,-202.0622477,0.0005263,2]
[320911836,1711704640495,-202.0622477,0.0005263,2]
[320911837,1711704640504,-202.0622477,0.0005263,2]
[320911838,1711704640513,-202.0622477,0.00052767,2]
[320911839,1711704640522,-202.0622477,0.00052767,2]
[320911840,1711704640532,-1000.0,0.00052776,2]
[320911841,1711704640541,-579.407603,0.00052824,30]
[320911842,1711704640550,-1662.37767,0.00052824,30]
[320911843,1711704640560,-202.0622477,0.00052849,2]
[320911844,1711704640569,-202.0622477,0.00052849,2]
[320911845,1711704640578,-136.54591848,0.00052849,2]
[320911846,1711704640591,-65.51632922,0.00052849,2]
[320911847,1711704640600,-202.0622477,0.00052849,2]
[320911848,1711704640610,-202.0622477,0.00052849,2]
[320911849,1711704640619,-202.0622477,0.00052849,2]
[320911850,1711704640628,-202.0622477,0.00052849,2]
[320911851,1711704640638,-145.70759315,0.00052874,4]
[320911894,1711704643539,-47.12128129,0.00052874,4]
[320911896,1711704643549,-151.0,0.00052875,7]
[320911898,1711704643558,-500.0,0.00052875,120]
[320911900,1711704643568,-500.0,0.00052875,120]
[320911902,1711704643577,-421.87871872,0.00052876,120]
[320911905,1711704643592,-78.12128128,0.00052876,120]
[320911906,1711704643601,-341.14378185,0.00052876,120]
[320911908,1711704643610,-500.0,0.00052876,120]
[320911911,1711704643620,-500.0,0.00052876,120]
[320911913,1711704643630,-500.0,0.00052876,120]
[320911915,1711704643639,-401.08775935,0.00052876,120]
[320911917,1711704643648,-500.0,0.00052876,120]
[320911919,1711704643658,-500.0,0.00052876,120]
[320911921,1711704643667,-500.0,0.00052876,120]
[320911923,1711704643676,-503.68781414,0.00052876,120]
[320911925,1711704643686,-212.49195971,0.00052876,120]
[320912127,1711704646741,-500.0,0.00052054,120]
[320912128,1711704646751,-287.50804029,0.00052876,120]
[320912129,1711704646761,-500.0,0.00052876,120]
[320912130,1711704646770,-500.0,0.00052876,120]
[320912131,1711704646780,-480.89128975,0.00052876,120]
[320912132,1711704646802,-500.0,0.00052876,120]
[320912133,1711704646812,-500.0,0.00052876,120]
[320912134,1711704646822,-500.0,0.00052876,120]
[320912135,1711704646832,-945.73,0.00052876,120]
[320912136,1711704646843,-500.0,0.00052876,120]
[320912137,1711704646853,-500.0,0.00052876,120]
[320912138,1711704646863,-500.0,0.00052876,120]
[320912139,1711704646874,-500.0,0.00052876,120]
[320912140,1711704646885,-500.0,0.00052876,120]
[320912141,1711704646896,-500.0,0.00052876,120]
[320912142,1711704646906,-500.0,0.00052876,120]
[320912143,1711704646916,-330.16759878,0.00052876,120]
[320912144,1711704646926,-500.0,0.00052876,120]
[320912145,1711704646938,-500.0,0.00052876,120]
[320912146,1711704646952,-500.0,0.00052876,120]
[320912147,1711704646962,-461.75820342,0.00052876,120]
[320912148,1711704646972,-500.0,0.00052876,120]
[320912149,1711704646983,-151.0,0.00052876,7]
[320912150,1711704646994,-283.6308,0.00052876,7]
[320912151,1711704647005,-500.0,0.00052876,120]
[320912152,1711704647016,-500.0,0.00052876,120]
[320912153,1711704647026,-500.0,0.00052876,120]
[320912154,1711704647036,-500.0,0.00052876,120]
[320912155,1711704647046,-412.41127158,0.00052876,120]
[320912156,1711704647056,-500.0,0.00052876,120]
[320912157,1711704647066,-500.0,0.00052876,120]
[320912158,1711704647076,-500.0,0.00052876,120]
[320912159,1711704647086,-500.0,0.00052876,120]
[320912160,1711704647096,-500.0,0.00052876,120]
[320912161,1711704647105,-500.0,0.00052876,120]
[320912162,1711704647115,-500.0,0.00052876,120]
[320912163,1711704647126,-500.0,0.00052876,120]
[320912164,1711704647135,-500.0,0.00052876,120]
[320912165,1711704647145,-500.0,0.00052876,120]
[320912166,1711704647155,-500.0,0.00052876,120]
[320912167,1711704647165,-500.0,0.00052876,120]
[320912168,1711704647175,-1229.64,0.00052876,120]
[320912169,1711704647185,-500.0,0.00052876,120]
[320912170,1711704647194,-500.0,0.00052876,120]
[320912171,1711704647204,-500.0,0.00052876,120]
[320912172,1711704647214,-5861.02,0.00052876,120]
[320912173,1711704647224,-500.0,0.00052876,120]
[320912174,1711704647233,-500.0,0.00052876,120]
[320912175,1711704647243,-500.0,0.00052876,120]
[320912176,1711704647253,-500.0,0.00052876,120]
[320912177,1711704647263,-500.0,0.00052876,120]
[320912178,1711704647273,-500.0,0.00052876,120]
[320912179,1711704647283,-500.0,0.00052876,120]
[320912180,1711704647293,-500.0,0.00052876,120]
[320912181,1711704647302,-500.0,0.00052876,120]
[320912182,1711704647311,-500.0,0.00052876,120]
[320912183,1711704647320,-1661.84,0.00052876,120]
[320912184,1711704647330,-536.92,0.00052876,120]
[320912185,1711704647339,-500.0,0.00052876,120]
[320912186,1711704647349,-617.19,0.00052876,120]
[320912187,1711704647358,-500.0,0.00052876,120]
[320912188,1711704647368,-1288.36,0.00052876,120]
[320912189,1711704647378,-3196.86,0.00052876,120]
[320912190,1711704647387,-1277.96,0.00052876,120]
[320912191,1711704647397,-500.0,0.00052876,120]
[320912192,1711704647406,-500.0,0.00052876,120]
[320912193,1711704647416,-500.0,0.00052876,120]
[320912194,1711704647425,-7716.46,0.00052876,120]
[320912195,1711704647435,-505.82826503,0.00052876,120]
[320912196,1711704647444,-1423.62,0.00052876,2]
[320912197,1711704647454,-500.0,0.00052876,120]
[320912198,1711704647464,-1810.3,0.00052876,120]
[320912199,1711704647474,-500.0,0.00052876,120]
[320912200,1711704647484,-500.0,0.00052876,120]
[320912201,1711704647493,-500.0,0.00052876,120]
[320912202,1711704647502,-649.62,0.00052876,120]
[320912203,1711704647512,-500.0,0.00052876,120]
[320912204,1711704647521,-2224.71,0.00052876,120]
[320912205,1711704647531,-500.0,0.00052876,120]
[320912206,1711704647540,-500.0,0.00052876,120]
[320912207,1711704647550,-373.39587934,0.00052876,120]
[320912208,1711704647560,-745.63,0.00052876,120]
[320912209,1711704647569,-516.05,0.00052876,120]
[320912210,1711704647579,-500.0,0.00052876,120]
[320912211,1711704647588,-500.0,0.00052876,120]
[320912212,1711704647598,-1240.16,0.00052876,120]
[320912213,1711704647607,-749.5,0.00052876,120]
[320912214,1711704647616,-17180.59,0.00052876,90]
[320912215,1711704647627,-500.0,0.00052876,120]
[320912216,1711704647636,-4357.59,0.00052876,21]
[320912217,1711704647645,-1030.82,0.00052876,120]
[320912218,1711704647654,-500.0,0.00052876,120]
[320912219,1711704647663,-500.0,0.00052876,120]
[320912220,1711704647672,-500.0,0.00052876,120]
[320912221,1711704647682,-175.79500267,0.00052876,120]
[320912222,1711704647691,-1314.11,0.00052876,120]
[320912223,1711704647700,-500.0,0.00052876,120]
[320912224,1711704647710,-500.0,0.00052876,120]
[320912225,1711704647719,-500.0,0.00052876,120]
[320912226,1711704647728,-500.0,0.00052876,120]
[320912227,1711704647738,-500.0,0.00052876,120]
[320912228,1711704647748,-500.0,0.00052876,120]
[320912229,1711704647759,-500.0,0.00052876,120]
[320912230,1711704647769,-725.16,0.00052876,120]
[320912231,1711704647779,-500.0,0.00052876,120]
[320912232,1711704647788,-357.27061827,0.00052876,120]
[320912233,1711704647798,-500.0,0.00052876,120]
[320912234,1711704647808,-500.0,0.00052876,120]
[320912235,1711704647818,-1937.48,0.00052876,120]
[320912236,1711704647827,-1249.58,0.00052876,120]
[320912237,1711704647837,-1000.0,0.00052876,120]
[320912238,1711704647847,-791.08,0.00052876,120]
[320912239,1711704647857,-500.0,0.00052876,60]
[320912240,1711704647868,-500.0,0.00052876,120]
[320912241,1711704647878,-308.77963021,0.00052876,120]
[320912242,1711704647888,-500.0,0.00052876,120]
[320912243,1711704647898,-500.0,0.00052876,120]
[320912244,1711704647908,-500.0,0.00052876,120]
[320912245,1711704647918,-500.0,0.00052876,120]
[320912246,1711704647927,-361.41844941,0.00052876,120]
[320912247,1711704647938,-500.0,0.00052876,120]
[320912248,1711704647950,-500.0,0.00052876,120]
[320912249,1711704647960,-500.0,0.00052876,120]
[320912250,1711704647972,-202.0622477,0.00052932,2]
[320912251,1711704647984,-202.0622477,0.00052932,2]
[320912252,1711704647993,-202.0622477,0.00052932,2]
[320912253,1711704648002,-202.0622477,0.00052932,2]
[320912254,1711704648011,-202.0622477,0.00052932,2]
[320912255,1711704648022,-2427.81157706,0.00052941,2]
[320912256,1711704648034,-500.0,0.00052969,120]
[320912257,1711704648045,-3731.0,0.0005297,35]
[320912258,1711704648056,-278.06,0.0005297,35]
[320912259,1711704648066,-150.5,0.0005297,35]
[320912260,1711704648079,-3731.0,0.0005298,35]
[320912261,1711704648089,-150.5,0.0005298,35]
[320912262,1711704648100,-150.5,0.0005298,35]
[320912263,1711704648115,-3731.0,0.0005299,35]
[320912264,1711704648126,-150.5,0.0005299,35]
[320912265,1711704648137,-150.5,0.0005299,35]
[320912266,1711704648146,-491.00316,0.00052999,120]
[320912267,1711704648156,-281.61260556,0.00052999,120]
[320912268,1711704648166,-200.0,0.00052999,120]
[320912269,1711704648176,-215.35314801,0.00052999,120]
[320912270,1711704648185,-500.0,0.00052999,120]
[320912271,1711704648195,-500.0,0.00052999,120]
[320912272,1711704648204,-500.0,0.00052999,120]
[320912273,1711704648213,-500.0,0.00052999,120]
[320912274,1711704648302,-500.0,0.00052999,120]
[320912275,1711704648312,-500.0,0.00052999,120]